[Event "*** Titled Tuesday Blitz"]
[Site "Chess.com"]
[Date "2021.03.09"]
[Round "9"]
[White "ckgchess"]
[Black "Natalya_Buksa"]
[Result "1-0"]
[WhiteElo "2752"]
[BlackElo "2533"]
[TimeControl "180+1"]
[EndTime "11:48:00 PST"]
[Termination "ckgchess won by resignation"]

1. d4 {[%clk 0:03:00.9]} 1... d5 {[%clk 0:02:38.1]} 2. c4 {[%clk 0:03:00.6]}
2... e6 {[%clk 0:02:37.8]} 3. Nf3 {[%clk 0:03:00]} 3... Nf6 {[%clk 0:02:37.7]}
4. g3 {[%clk 0:02:59.8]} 4... Be7 {[%clk 0:02:37.8]} 5. Bg2 {[%clk 0:02:59.3]}
5... O-O {[%clk 0:02:38.4]} 6. Nc3 {[%clk 0:02:59.7]} 6... b6 {[%clk 0:02:35.9]}
7. cxd5 {[%clk 0:02:54.7]} 7... Nxd5 {[%clk 0:02:34.9]} 8. Nxd5 {[%clk
0:02:52.6]} 8... exd5 {[%clk 0:02:34.7]} 9. O-O {[%clk 0:02:51.6]} 9... Be6
{[%clk 0:02:35.2]} 10. Bf4 {[%clk 0:02:49.3]} 10... Nd7 {[%clk 0:02:34.2]} 11.
Rc1 {[%clk 0:02:43.5]} 11... c5 {[%clk 0:02:34.5]} 12. Qc2 {[%clk 0:02:23.3]}
12... h6 {[%clk 0:02:30.5]} 13. Rfd1 {[%clk 0:02:22]} 13... Qc8 {[%clk
0:02:14.8]} 14. Qa4 {[%clk 0:01:45.7]} 14... Qb7 {[%clk 0:02:14.1]} 15. Nd2
{[%clk 0:01:33.3]} 15... Rac8 {[%clk 0:02:02.7]} 16. e4 {[%clk 0:01:24.3]} 16...
b5 {[%clk 0:01:29]} 17. Qc2 {[%clk 0:01:14.4]} 17... cxd4 {[%clk 0:01:27]} 18.
Qd3 {[%clk 0:01:09]} 18... Bf6 {[%clk 0:01:22.8]} 19. exd5 {[%clk 0:01:01.1]}
19... Bxd5 {[%clk 0:01:22.1]} 20. Ne4 {[%clk 0:01:00.8]} 20... Bxe4 {[%clk
0:01:09.8]} 21. Bxe4 {[%clk 0:01:00.3]} 21... Qb6 {[%clk 0:01:10.3]} 22. Bf5
{[%clk 0:00:57.3]} 22... Nc5 {[%clk 0:01:06.6]} 23. Qf3 {[%clk 0:00:52.6]} 23...
Ne6 {[%clk 0:00:52.8]} 24. Bd2 {[%clk 0:00:41]} 24... Ng5 {[%clk 0:00:35.7]} 25.
Bxg5 {[%clk 0:00:38.1]} 25... Rxc1 {[%clk 0:00:26.1]} 26. Bxc1 {[%clk 0:00:39]}
26... Qc5 {[%clk 0:00:26]} 27. Bd3 {[%clk 0:00:35.3]} 27... Qd6 {[%clk
0:00:17.2]} 28. Qf5 {[%clk 0:00:30.7]} 28... g6 {[%clk 0:00:17.3]} 29. Qxb5
{[%clk 0:00:30.3]} 29... Kg7 {[%clk 0:00:17.8]} 30. Bf4 {[%clk 0:00:29.3]} 30...
Qe7 {[%clk 0:00:15.7]} 31. h4 {[%clk 0:00:27.5]} 31... Rc8 {[%clk 0:00:15.3]}
32. Qa5 {[%clk 0:00:20.4]} 32... Qb7 {[%clk 0:00:11.8]} 33. Qd2 {[%clk
0:00:18.7]} 33... Qf3 {[%clk 0:00:11.3]} 34. Bxh6+ {[%clk 0:00:17.8]} 34... Kh7
{[%clk 0:00:11.9]} 35. Re1 {[%clk 0:00:17.2]} 35... Rb8 {[%clk 0:00:10.2]} 36.
Bf4 {[%clk 0:00:10.6]} 36... Rb7 {[%clk 0:00:08.4]} 37. Be4 {[%clk 0:00:10.6]}
1-0

[Event "*** Titled Tuesday Blitz"]
[Site "Chess.com"]
[Date "2021.03.09"]
[Round "9"]
[White "mishanick"]
[Black "GM_LOADING"]
[Result "1-0"]
[WhiteElo "2989"]
[BlackElo "2569"]
[TimeControl "180+1"]
[EndTime "11:48:02 PST"]
[Termination "mishanick won by resignation"]

1. e4 {[%clk 0:02:57.5]} 1... e5 {[%clk 0:02:57.4]} 2. Nf3 {[%clk 0:02:57.9]}
2... Nc6 {[%clk 0:02:58]} 3. Bb5 {[%clk 0:02:58.5]} 3... g6 {[%clk 0:02:58.2]}
4. c3 {[%clk 0:02:56.9]} 4... a6 {[%clk 0:02:56.7]} 5. Ba4 {[%clk 0:02:45.5]}
5... Bg7 {[%clk 0:02:56.2]} 6. d4 {[%clk 0:02:44.7]} 6... exd4 {[%clk
0:02:57.1]} 7. cxd4 {[%clk 0:02:44.9]} 7... b5 {[%clk 0:02:56.9]} 8. Bc2 {[%clk
0:02:43.4]} 8... d6 {[%clk 0:02:55.8]} 9. h3 {[%clk 0:02:36.5]} 9... Nge7 {[%clk
0:02:55.4]} 10. O-O {[%clk 0:02:36.2]} 10... O-O {[%clk 0:02:55.3]} 11. a4
{[%clk 0:02:36.8]} 11... b4 {[%clk 0:02:40.3]} 12. Nbd2 {[%clk 0:02:35.9]} 12...
Nxd4 {[%clk 0:02:31.4]} 13. Nxd4 {[%clk 0:02:35.8]} 13... Bxd4 {[%clk
0:02:32.3]} 14. Nc4 {[%clk 0:02:36.5]} 14... Bg7 {[%clk 0:02:32]} 15. Bg5 {[%clk
0:02:36.9]} 15... h6 {[%clk 0:02:28.2]} 16. Bh4 {[%clk 0:02:35.8]} 16... Re8
{[%clk 0:02:24]} 17. f4 {[%clk 0:02:32.4]} 17... Qd7 {[%clk 0:01:45.9]} 18. f5
{[%clk 0:02:15.9]} 18... d5 {[%clk 0:01:22.3]} 19. Ne3 {[%clk 0:02:00.5]} 19...
d4 {[%clk 0:01:13.8]} 20. Nc4 {[%clk 0:01:26.6]} 20... Qc6 {[%clk 0:00:21.6]}
21. Bd3 {[%clk 0:01:20.1]} 21... gxf5 {[%clk 0:00:21]} 22. exf5 {[%clk 0:01:21]}
22... Nxf5 {[%clk 0:00:18.6]} 23. Bxf5 {[%clk 0:01:01.1]} 23... Bxf5 {[%clk
0:00:16.9]} 24. Rxf5 {[%clk 0:01:02]} 24... Qxc4 {[%clk 0:00:17.1]} 25. Qg4
{[%clk 0:01:02.8]} 25... Kh8 {[%clk 0:00:07]} 26. Bf6 {[%clk 0:00:32.5]} 26...
Rg8 {[%clk 0:00:06.2]} 27. Qf4 {[%clk 0:00:22.1]} 27... Kh7 {[%clk 0:00:06.1]}
28. Rf1 {[%clk 0:00:18.9]} 28... Rae8 {[%clk 0:00:05.9]} 29. Qh4 {[%clk
0:00:14.5]} 29... Qe2 {[%clk 0:00:02.6]} 30. R1f2 {[%clk 0:00:09.3]} 30... Qe1+
{[%clk 0:00:03.1]} 31. Kh2 {[%clk 0:00:09.6]} 31... Re2 {[%clk 0:00:03.8]} 32.
Bxg7 {[%clk 0:00:08.4]} 32... Rxg7 {[%clk 0:00:03.4]} 33. Rf6 {[%clk 0:00:08.9]}
33... Rg6 {[%clk 0:00:02.3]} 34. Rxf7+ {[%clk 0:00:09]} 34... Rg7 {[%clk
0:00:02.8]} 35. Rxg7+ {[%clk 0:00:09.2]} 35... Kxg7 {[%clk 0:00:03.3]} 36. Qf6+
{[%clk 0:00:09.9]} 36... Kg8 {[%clk 0:00:03.3]} 37. Qg6+ {[%clk 0:00:09.9]} 1-0

[Event "*** Titled Tuesday Blitz"]
[Site "Chess.com"]
[Date "2021.03.09"]
[Round "9"]
[White "kleopl"]
[Black "kamilianin235"]
[Result "1-0"]
[WhiteElo "2462"]
[BlackElo "2267"]
[TimeControl "180+1"]
[EndTime "11:48:02 PST"]
[Termination "kleopl won on time"]

1. c4 {[%clk 0:03:00.9]} 1... e5 {[%clk 0:02:57.4]} 2. Nc3 {[%clk 0:03:00.5]}
2... Nf6 {[%clk 0:02:56]} 3. Nf3 {[%clk 0:03:01.1]} 3... d6 {[%clk 0:02:53.7]}
4. d4 {[%clk 0:02:58.6]} 4... exd4 {[%clk 0:02:53.4]} 5. Nxd4 {[%clk 0:02:57.9]}
5... g6 {[%clk 0:02:53.5]} 6. e4 {[%clk 0:02:55.6]} 6... Bg7 {[%clk 0:02:53.2]}
7. Be2 {[%clk 0:02:56]} 7... O-O {[%clk 0:02:53.2]} 8. O-O {[%clk 0:02:56.7]}
8... Re8 {[%clk 0:02:52.4]} 9. f3 {[%clk 0:02:54.8]} 9... Nc6 {[%clk 0:02:52.4]}
10. Be3 {[%clk 0:02:49.9]} 10... Nd7 {[%clk 0:02:48]} 11. Kh1 {[%clk 0:02:44.8]}
11... Nc5 {[%clk 0:02:33.5]} 12. Rc1 {[%clk 0:02:39.6]} 12... Ne6 {[%clk
0:02:29.6]} 13. Nc2 {[%clk 0:02:35.4]} 13... b6 {[%clk 0:02:22.8]} 14. Nd5
{[%clk 0:02:32.4]} 14... Bxb2 {[%clk 0:02:16.7]} 15. Rb1 {[%clk 0:02:28]} 15...
Bg7 {[%clk 0:02:15.5]} 16. Qd2 {[%clk 0:02:24.4]} 16... Bb7 {[%clk 0:02:14.4]}
17. Rfd1 {[%clk 0:02:18]} 17... Qd7 {[%clk 0:02:10.1]} 18. Bh6 {[%clk
0:02:17.4]} 18... Qd8 {[%clk 0:01:29.1]} 19. Bxg7 {[%clk 0:02:13.8]} 19... Nxg7
{[%clk 0:01:25.2]} 20. Nce3 {[%clk 0:02:11]} 20... Ne7 {[%clk 0:01:21.6]} 21.
Nf6+ {[%clk 0:02:09.3]} 21... Kh8 {[%clk 0:01:20.2]} 22. Neg4 {[%clk 0:02:03.1]}
22... Ng8 {[%clk 0:01:10.3]} 23. Nxe8 {[%clk 0:01:57.7]} 23... Qxe8 {[%clk
0:01:11.2]} 24. c5 {[%clk 0:01:46.4]} 24... dxc5 {[%clk 0:01:07.6]} 25. Qd7
{[%clk 0:01:45.6]} 25... h5 {[%clk 0:00:57.5]} 26. Qxc7 {[%clk 0:01:39]} 26...
Bxe4 {[%clk 0:00:38.2]} 27. fxe4 {[%clk 0:01:28.1]} 27... hxg4 {[%clk
0:00:37.2]} 28. Bxg4 {[%clk 0:01:29]} 28... Nf6 {[%clk 0:00:35.7]} 29. Bf3
{[%clk 0:01:28]} 29... Ne6 {[%clk 0:00:34.2]} 30. Qe5 {[%clk 0:01:22.1]} 30...
Kg7 {[%clk 0:00:31.5]} 31. Rd6 {[%clk 0:01:11.3]} 31... Qe7 {[%clk 0:00:21]} 32.
Rbd1 {[%clk 0:01:08.8]} 32... Rc8 {[%clk 0:00:11.5]} 33. Rd7 {[%clk 0:01:03.5]}
33... Qe8 {[%clk 0:00:10.6]} 34. Rxa7 {[%clk 0:01:02.4]} 34... Nd4 {[%clk
0:00:09.6]} 35. Qxe8 {[%clk 0:00:55.3]} 35... Rxe8 {[%clk 0:00:10.5]} 36. Rb7
{[%clk 0:00:53.9]} 36... Re6 {[%clk 0:00:06.3]} 37. e5 {[%clk 0:00:52]} 37...
Rxe5 {[%clk 0:00:02.9]} 38. Rxb6 {[%clk 0:00:50.9]} 38... Rf5 {[%clk 0:00:03.4]}
39. Bb7 {[%clk 0:00:45.2]} 39... Ng4 {[%clk 0:00:02.3]} 40. Re1 {[%clk
0:00:31.8]} 40... Nf2+ {[%clk 0:00:02.2]} 41. Kg1 {[%clk 0:00:32]} 41... Nd3
{[%clk 0:00:03]} 42. Re3 {[%clk 0:00:26.2]} 1-0

[Event "*** Titled Tuesday Blitz"]
[Site "Chess.com"]
[Date "2021.03.09"]
[Round "9"]
[White "SF-96"]
[Black "Nozdrachev_Vladislav"]
[Result "1/2-1/2"]
[WhiteElo "2552"]
[BlackElo "2702"]
[TimeControl "180+1"]
[EndTime "11:48:03 PST"]
[Termination "Game drawn by agreement"]

1. e4 {[%clk 0:03:00.2]} 1... e5 {[%clk 0:02:58.4]} 2. Nf3 {[%clk 0:03:00.1]}
2... Nc6 {[%clk 0:02:58.1]} 3. Bb5 {[%clk 0:03:00.7]} 3... a6 {[%clk 0:02:56.6]}
4. Ba4 {[%clk 0:03:01]} 4... d6 {[%clk 0:02:56.4]} 5. Bxc6+ {[%clk 0:02:45.3]}
5... bxc6 {[%clk 0:02:55.4]} 6. d4 {[%clk 0:02:45.9]} 6... exd4 {[%clk
0:02:55.1]} 7. Nxd4 {[%clk 0:02:41.8]} 7... Bd7 {[%clk 0:02:54.8]} 8. O-O {[%clk
0:02:36.3]} 8... Nf6 {[%clk 0:02:53]} 9. Qf3 {[%clk 0:02:29.4]} 9... Be7 {[%clk
0:02:46.3]} 10. e5 {[%clk 0:02:06.7]} 10... dxe5 {[%clk 0:02:45.7]} 11. Nxc6
{[%clk 0:02:06.6]} 11... Bxc6 {[%clk 0:02:44.6]} 12. Qxc6+ {[%clk 0:02:06.7]}
12... Nd7 {[%clk 0:02:44.5]} 13. Nc3 {[%clk 0:01:53.1]} 13... O-O {[%clk
0:02:39.2]} 14. Rd1 {[%clk 0:01:39.2]} 14... Bd6 {[%clk 0:02:37.6]} 15. Ne4
{[%clk 0:01:35.7]} 15... Nf6 {[%clk 0:02:11.7]} 16. Bg5 {[%clk 0:01:19.2]} 16...
Qe8 {[%clk 0:02:08.5]} 17. Nxf6+ {[%clk 0:01:15.6]} 17... gxf6 {[%clk
0:02:07.7]} 18. Qxe8 {[%clk 0:01:15.7]} 18... Rfxe8 {[%clk 0:02:07.6]} 19. Bxf6
{[%clk 0:01:16]} 19... Rab8 {[%clk 0:02:07.3]} 20. b3 {[%clk 0:01:13.6]} 20...
Re6 {[%clk 0:02:05.8]} 21. Bg5 {[%clk 0:01:10.7]} 21... f5 {[%clk 0:02:05.6]}
22. Rd5 {[%clk 0:01:00.5]} 22... Kf7 {[%clk 0:02:03.6]} 23. Rad1 {[%clk
0:00:58.4]} 23... Kg6 {[%clk 0:01:58.1]} 24. Bc1 {[%clk 0:00:58.4]} 24... e4
{[%clk 0:01:53.2]} 25. g3 {[%clk 0:00:54.5]} 25... Be5 {[%clk 0:01:48.5]} 26.
Rd7 {[%clk 0:00:48.5]} 26... Bd6 {[%clk 0:01:46.5]} 27. Bb2 {[%clk 0:00:37.8]}
27... Rg8 {[%clk 0:01:39.6]} 28. Kf1 {[%clk 0:00:34.4]} 28... h5 {[%clk
0:01:38.9]} 29. Rd5 {[%clk 0:00:30.4]} 29... h4 {[%clk 0:01:37.3]} 30. c4 {[%clk
0:00:30.6]} 30... h3 {[%clk 0:01:35.1]} 31. c5 {[%clk 0:00:28.1]} 31... Be7
{[%clk 0:01:33.4]} 32. Rxc7 {[%clk 0:00:28.3]} 32... a5 {[%clk 0:01:25.4]} 33.
Re5 {[%clk 0:00:20.6]} 33... Rxe5 {[%clk 0:01:19]} 34. Bxe5 {[%clk 0:00:21.5]}
34... Bg5 {[%clk 0:01:13.3]} 35. c6 {[%clk 0:00:19.2]} 35... Rd8 {[%clk
0:01:11.4]} 36. Rd7 {[%clk 0:00:18.7]} 36... Rxd7 {[%clk 0:01:11.2]} 37. cxd7
{[%clk 0:00:18.9]} 37... Bd8 {[%clk 0:01:11.9]} 38. Ke2 {[%clk 0:00:15.6]} 38...
Kf7 {[%clk 0:01:12]} 39. f3 {[%clk 0:00:14.9]} 39... Ke6 {[%clk 0:01:11.8]} 40.
Bc3 {[%clk 0:00:15.2]} 40... exf3+ {[%clk 0:01:07.8]} 41. Kxf3 {[%clk
0:00:15.6]} 41... Kxd7 {[%clk 0:01:08.1]} 42. g4 {[%clk 0:00:16]} 42... Ke6
{[%clk 0:00:59.9]} 43. gxf5+ {[%clk 0:00:12.4]} 43... Kxf5 {[%clk 0:00:59]} 44.
Kg3 {[%clk 0:00:13.1]} 44... a4 {[%clk 0:00:57.6]} 45. bxa4 {[%clk 0:00:12.2]}
45... Bc7+ {[%clk 0:00:57.2]} 46. Kxh3 {[%clk 0:00:12.3]} 46... Ke6 {[%clk
0:00:56.3]} 47. a5 {[%clk 0:00:09.5]} 47... Kd7 {[%clk 0:00:56.1]} 48. a6 {[%clk
0:00:09]} 48... Kc8 {[%clk 0:00:54.8]} 49. Kg2 {[%clk 0:00:05]} 49... Bxh2
{[%clk 0:00:52.8]} 50. Kxh2 {[%clk 0:00:05.4]} 50... Kb8 {[%clk 0:00:52.8]} 51.
Bd4 {[%clk 0:00:05.9]} 51... Ka8 {[%clk 0:00:52.9]} 52. Kg3 {[%clk 0:00:06]}
52... Kb8 {[%clk 0:00:53]} 53. Kf4 {[%clk 0:00:06.5]} 53... Ka8 {[%clk
0:00:52.9]} 54. Ke5 {[%clk 0:00:06.9]} 54... Kb8 {[%clk 0:00:53.1]} 55. Kd5
{[%clk 0:00:06.4]} 1/2-1/2

[Event "*** Titled Tuesday Blitz"]
[Site "Chess.com"]
[Date "2021.03.09"]
[Round "9"]
[White "SimplyDevina"]
[Black "allvim"]
[Result "1-0"]
[WhiteElo "2216"]
[BlackElo "2345"]
[TimeControl "180+1"]
[EndTime "11:48:04 PST"]
[Termination "SimplyDevina won by resignation"]

1. d4 {[%clk 0:03:00.9]} 1... Nf6 {[%clk 0:03:00]} 2. c4 {[%clk 0:03:00.1]} 2...
g6 {[%clk 0:03:00.4]} 3. Nc3 {[%clk 0:03:00.4]} 3... d5 {[%clk 0:03:00.6]} 4.
cxd5 {[%clk 0:03:00.8]} 4... Nxd5 {[%clk 0:03:01.5]} 5. e4 {[%clk 0:03:01.3]}
5... Nxc3 {[%clk 0:03:02.1]} 6. bxc3 {[%clk 0:03:02.2]} 6... Bg7 {[%clk
0:03:02.9]} 7. Nf3 {[%clk 0:03:02.9]} 7... O-O {[%clk 0:03:03.5]} 8. Rb1 {[%clk
0:03:03.6]} 8... c5 {[%clk 0:03:04.2]} 9. Be2 {[%clk 0:03:03.2]} 9... Qa5 {[%clk
0:03:04.7]} 10. O-O {[%clk 0:02:50.3]} 10... Qxc3 {[%clk 0:02:54.7]} 11. d5
{[%clk 0:02:49.1]} 11... Qa5 {[%clk 0:02:48.7]} 12. Be3 {[%clk 0:02:29.7]} 12...
Qc7 {[%clk 0:02:38.3]} 13. Qc1 {[%clk 0:02:21.4]} 13... b6 {[%clk 0:02:31.9]}
14. Bh6 {[%clk 0:02:21.3]} 14... Ba6 {[%clk 0:02:18.7]} 15. Bxg7 {[%clk
0:01:36.5]} 15... Kxg7 {[%clk 0:02:17.2]} 16. Bxa6 {[%clk 0:01:22.9]} 16... Nxa6
{[%clk 0:02:17.3]} 17. e5 {[%clk 0:01:23.8]} 17... Rad8 {[%clk 0:01:58.7]} 18.
Qc4 {[%clk 0:01:04.6]} 18... Qb7 {[%clk 0:01:42.2]} 19. Rfd1 {[%clk 0:00:56.6]}
19... Nb4 {[%clk 0:01:33.4]} 20. d6 {[%clk 0:00:43.2]} 20... exd6 {[%clk
0:01:22.5]} 21. exd6 {[%clk 0:00:44.1]} 21... Rfe8 {[%clk 0:01:11.8]} 22. a3
{[%clk 0:00:39.5]} 22... Nc6 {[%clk 0:01:04.8]} 23. Qxc5 {[%clk 0:00:39.7]}
23... Qd7 {[%clk 0:00:20.4]} 24. Qc3+ {[%clk 0:00:37.4]} 24... Kg8 {[%clk
0:00:19.7]} 25. h3 {[%clk 0:00:34.5]} 25... Re6 {[%clk 0:00:19.1]} 26. Rbc1
{[%clk 0:00:31.3]} 26... Na5 {[%clk 0:00:18.4]} 27. Ne5 {[%clk 0:00:29.2]} 27...
Qb5 {[%clk 0:00:16.2]} 28. Qc7 {[%clk 0:00:24.5]} 28... Rf8 {[%clk 0:00:12.7]}
29. d7 {[%clk 0:00:21.3]} 29... Qxe5 {[%clk 0:00:03.5]} 30. Qxe5 {[%clk
0:00:19.8]} 30... Rxe5 {[%clk 0:00:04.4]} 31. d8=Q {[%clk 0:00:20.5]} 31... Rxd8
{[%clk 0:00:04.5]} 32. Rxd8+ {[%clk 0:00:21.4]} 32... Kg7 {[%clk 0:00:05.3]} 33.
Rd7 {[%clk 0:00:21.3]} 33... Re2 {[%clk 0:00:02.8]} 34. Rcc7 {[%clk 0:00:17.6]}
34... Re1+ {[%clk 0:00:02.8]} 35. Kh2 {[%clk 0:00:17.3]} 35... Nb3 {[%clk
0:00:03.7]} 36. Rxf7+ {[%clk 0:00:17.5]} 36... Kh6 {[%clk 0:00:04.3]} 37. h4
{[%clk 0:00:16.3]} 37... Kh5 {[%clk 0:00:04.2]} 38. Kg3 {[%clk 0:00:14.4]} 38...
g5 {[%clk 0:00:02.5]} 39. Rxh7+ {[%clk 0:00:12.8]} 39... Kg6 {[%clk 0:00:02.9]}
40. h5+ {[%clk 0:00:13.2]} 40... Kf5 {[%clk 0:00:03.5]} 41. Rhf7+ {[%clk
0:00:12.9]} 41... Ke4 {[%clk 0:00:03.3]} 42. Rfe7+ {[%clk 0:00:13.5]} 42... Kd3
{[%clk 0:00:03.8]} 43. Rxe1 {[%clk 0:00:14.4]} 1-0

[Event "*** Titled Tuesday Blitz"]
[Site "Chess.com"]
[Date "2021.03.09"]
[Round "9"]
[White "ErikRonka"]
[Black "Nuvas"]
[Result "0-1"]
[WhiteElo "2406"]
[BlackElo "2570"]
[TimeControl "180+1"]
[EndTime "11:48:05 PST"]
[Termination "Nuvas won on time"]

1. d4 {[%clk 0:03:00.9]} 1... d5 {[%clk 0:02:53.6]} 2. c4 {[%clk 0:03:00]} 2...
c6 {[%clk 0:02:51.6]} 3. Nc3 {[%clk 0:03:00.4]} 3... Nf6 {[%clk 0:02:49]} 4. e3
{[%clk 0:03:00.3]} 4... e6 {[%clk 0:02:46.1]} 5. Nf3 {[%clk 0:02:58.2]} 5...
Nbd7 {[%clk 0:02:46.3]} 6. b3 {[%clk 0:02:58.3]} 6... Bd6 {[%clk 0:02:45]} 7.
Be2 {[%clk 0:02:55.4]} 7... e5 {[%clk 0:02:40.4]} 8. cxd5 {[%clk 0:02:53.1]}
8... cxd5 {[%clk 0:02:39.4]} 9. dxe5 {[%clk 0:02:45.8]} 9... Nxe5 {[%clk
0:02:37.2]} 10. O-O {[%clk 0:02:34.3]} 10... O-O {[%clk 0:02:33.4]} 11. Nxd5
{[%clk 0:01:59.6]} 11... Be6 {[%clk 0:02:12]} 12. Nxf6+ {[%clk 0:01:55.1]} 12...
Qxf6 {[%clk 0:02:10.8]} 13. Nd4 {[%clk 0:01:17]} 13... Nc6 {[%clk 0:02:10.8]}
14. Bb2 {[%clk 0:01:11.5]} 14... Be5 {[%clk 0:01:53.4]} 15. f4 {[%clk
0:01:08.5]} 15... Bxd4 {[%clk 0:01:52.1]} 16. Bxd4 {[%clk 0:01:07.7]} 16... Nxd4
{[%clk 0:01:51.3]} 17. Qxd4 {[%clk 0:01:08.6]} 17... Qe7 {[%clk 0:01:51.1]} 18.
e4 {[%clk 0:01:03.4]} 18... Rfd8 {[%clk 0:01:45.8]} 19. Qe3 {[%clk 0:01:03.1]}
19... f6 {[%clk 0:01:45]} 20. Rfd1 {[%clk 0:01:00.2]} 20... Qa3 {[%clk
0:01:37.3]} 21. h3 {[%clk 0:00:39.5]} 21... Qb2 {[%clk 0:01:31.9]} 22. Bc4
{[%clk 0:00:23.9]} 22... Bxc4 {[%clk 0:01:27.2]} 23. bxc4 {[%clk 0:00:24.8]}
23... Rxd1+ {[%clk 0:01:24.7]} 24. Rxd1 {[%clk 0:00:25.7]} 24... Qxa2 {[%clk
0:01:24.7]} 25. Rd7 {[%clk 0:00:24.1]} 25... Qxc4 {[%clk 0:01:13.7]} 26. Rxb7
{[%clk 0:00:19.5]} 26... a5 {[%clk 0:01:03.9]} 27. e5 {[%clk 0:00:15.9]} 27...
Qd5 {[%clk 0:00:51.1]} 28. Rc7 {[%clk 0:00:06.4]} 28... fxe5 {[%clk 0:00:45.2]}
29. fxe5 {[%clk 0:00:06.4]} 29... Re8 {[%clk 0:00:42.3]} 30. Rc5 {[%clk
0:00:04.8]} 30... Qd1+ {[%clk 0:00:39.3]} 31. Kh2 {[%clk 0:00:05.4]} 31... a4
{[%clk 0:00:39.6]} 32. e6 {[%clk 0:00:05.5]} 32... Qd6+ {[%clk 0:00:37.5]} 33.
Qe5 {[%clk 0:00:05.1]} 33... Qxe5+ {[%clk 0:00:35.1]} 34. Rxe5 {[%clk
0:00:04.6]} 34... Ra8 {[%clk 0:00:34.2]} 35. e7 {[%clk 0:00:03.3]} 35... Kf7
{[%clk 0:00:33.9]} 36. e8=Q+ {[%clk 0:00:02.2]} 36... Rxe8 {[%clk 0:00:34.2]}
37. Ra5 {[%clk 0:00:03.1]} 37... Re4 {[%clk 0:00:34.7]} 38. Kg3 {[%clk
0:00:01.8]} 38... h6 {[%clk 0:00:31]} 39. Kf3 {[%clk 0:00:02.7]} 39... Rb4
{[%clk 0:00:31.1]} 40. g3 {[%clk 0:00:03]} 40... Kg6 {[%clk 0:00:27.8]} 41. h4
{[%clk 0:00:03.4]} 41... Kf6 {[%clk 0:00:24.1]} 42. g4 {[%clk 0:00:02.5]} 42...
Rc4 {[%clk 0:00:20]} 0-1

[Event "*** Titled Tuesday Blitz"]
[Site "Chess.com"]
[Date "2021.03.09"]
[Round "9"]
[White "Milchone1"]
[Black "lucachess49"]
[Result "1-0"]
[WhiteElo "2535"]
[BlackElo "2397"]
[TimeControl "180+1"]
[EndTime "11:48:05 PST"]
[Termination "Milchone1 won by resignation"]

1. Nf3 {[%clk 0:03:00.9]} 1... Nf6 {[%clk 0:02:59.5]} 2. c4 {[%clk 0:03:01]}
2... e6 {[%clk 0:02:59.7]} 3. g3 {[%clk 0:03:01]} 3... d5 {[%clk 0:02:59.7]} 4.
Bg2 {[%clk 0:03:01.9]} 4... c5 {[%clk 0:02:59.4]} 5. O-O {[%clk 0:03:02.4]} 5...
Nc6 {[%clk 0:02:59.9]} 6. cxd5 {[%clk 0:03:02.8]} 6... exd5 {[%clk 0:02:59.7]}
7. d4 {[%clk 0:03:03.3]} 7... Bg4 {[%clk 0:02:54]} 8. Bg5 {[%clk 0:03:01.9]}
8... h6 {[%clk 0:02:14.7]} 9. Bxf6 {[%clk 0:03:01.2]} 9... Qxf6 {[%clk
0:02:15.6]} 10. Nc3 {[%clk 0:02:57.6]} 10... Rd8 {[%clk 0:02:13.1]} 11. dxc5
{[%clk 0:02:37.3]} 11... d4 {[%clk 0:01:48.1]} 12. Ne4 {[%clk 0:02:31.3]} 12...
Qg6 {[%clk 0:01:47.9]} 13. Nh4 {[%clk 0:02:27]} 13... Qe6 {[%clk 0:01:45.9]} 14.
f3 {[%clk 0:01:55]} 14... Bh3 {[%clk 0:01:37.9]} 15. Bxh3 {[%clk 0:01:54.9]}
15... Qxh3 {[%clk 0:01:38.8]} 16. Qb3 {[%clk 0:01:54.2]} 16... Qd7 {[%clk
0:01:24.9]} 17. Rad1 {[%clk 0:01:53.3]} 17... Be7 {[%clk 0:01:21.3]} 18. Nd6+
{[%clk 0:01:47.3]} 18... Bxd6 {[%clk 0:01:19.5]} 19. cxd6 {[%clk 0:01:48.2]}
19... O-O {[%clk 0:01:19.5]} 20. Ng2 {[%clk 0:01:38.4]} 20... Rfe8 {[%clk
0:01:16.9]} 21. Nf4 {[%clk 0:01:37.9]} 21... Qxd6 {[%clk 0:01:15.2]} 22. Qxb7
{[%clk 0:01:32.7]} 22... Rb8 {[%clk 0:01:14.3]} 23. Qa6 {[%clk 0:01:32.3]} 23...
Rxb2 {[%clk 0:01:09.7]} 24. Rf2 {[%clk 0:01:32.2]} 24... Rb6 {[%clk 0:00:31.4]}
25. Qa4 {[%clk 0:01:30.2]} 25... Qe5 {[%clk 0:00:28.5]} 26. Kf1 {[%clk
0:01:19.3]} 26... g5 {[%clk 0:00:18.6]} 27. Nd3 {[%clk 0:01:18.9]} 27... Qf6
{[%clk 0:00:16.5]} 28. Rc1 {[%clk 0:01:14.1]} 28... Reb8 {[%clk 0:00:16.1]} 29.
f4 {[%clk 0:01:12]} 29... Rb1 {[%clk 0:00:15.8]} 30. Rxb1 {[%clk 0:01:05.7]}
30... Rxb1+ {[%clk 0:00:16.7]} 31. Kg2 {[%clk 0:01:06.6]} 31... g4 {[%clk
0:00:16.3]} 32. Qc2 {[%clk 0:01:03.4]} 32... Rb6 {[%clk 0:00:14.7]} 33. Qc5
{[%clk 0:01:03]} 33... Qe6 {[%clk 0:00:12.9]} 34. Ne5 {[%clk 0:01:00]} 34...
Nxe5 {[%clk 0:00:07.6]} 35. fxe5 {[%clk 0:01:00.9]} 35... Qc6+ {[%clk
0:00:06.9]} 36. Qxc6 {[%clk 0:01:00.5]} 36... Rxc6 {[%clk 0:00:07.8]} 37. Rf4
{[%clk 0:01:01.4]} 37... h5 {[%clk 0:00:07.4]} 38. Rxd4 {[%clk 0:01:00.9]} 38...
Rc2 {[%clk 0:00:08]} 39. Kf2 {[%clk 0:00:59.8]} 39... Rxa2 {[%clk 0:00:07.7]}
40. Rd8+ {[%clk 0:00:59.5]} 40... Kg7 {[%clk 0:00:07.5]} 41. Rd7 {[%clk
0:01:00.4]} 41... Kg6 {[%clk 0:00:06.6]} 42. Rd6+ {[%clk 0:01:00.5]} 42... Kf5
{[%clk 0:00:06.6]} 43. Rf6+ {[%clk 0:01:00.5]} 43... Kxe5 {[%clk 0:00:06.9]} 44.
Rxf7 {[%clk 0:01:01.4]} 44... a5 {[%clk 0:00:05.7]} 45. Rh7 {[%clk 0:01:01.5]}
45... a4 {[%clk 0:00:06]} 46. Rxh5+ {[%clk 0:01:02]} 46... Ke4 {[%clk
0:00:06.6]} 47. Rg5 {[%clk 0:01:01.3]} 47... a3 {[%clk 0:00:04.9]} 48. Rxg4+
{[%clk 0:01:01.8]} 48... Kf5 {[%clk 0:00:05.5]} 49. Ra4 {[%clk 0:01:01.5]} 49...
Ra1 {[%clk 0:00:05.9]} 50. h4 {[%clk 0:01:01.8]} 50... a2 {[%clk 0:00:05.1]} 51.
g4+ {[%clk 0:01:01.9]} 51... Kg6 {[%clk 0:00:05.3]} 52. Ra6+ {[%clk 0:01:00.7]}
52... Kg7 {[%clk 0:00:05.1]} 53. h5 {[%clk 0:01:01.1]} 53... Kh7 {[%clk
0:00:04.9]} 54. Kg2 {[%clk 0:01:01.1]} 54... Kg7 {[%clk 0:00:05.2]} 55. g5
{[%clk 0:01:01.1]} 55... Kf7 {[%clk 0:00:05.3]} 56. h6 {[%clk 0:00:59.9]} 56...
Kg8 {[%clk 0:00:04.5]} 57. g6 {[%clk 0:00:59.3]} 57... Kf8 {[%clk 0:00:05.1]}
58. Ra8+ {[%clk 0:00:58]} 58... Ke7 {[%clk 0:00:04.7]} 59. h7 {[%clk 0:00:58.5]}
1-0